bitfinex/quotes_ETHUSD_20251226
["timestamp","ask_amount","ask_price","bid_price","bid_amount"]
[1766709850725,0.001,2899.8,2899.3,2.5396]
[1766709850922,0.27376,2899.7,2899.3,2.5396]
[1766709851226,0.27376,2899.7,2899.4,0.03448989]
[1766709851722,0.001,2899.8,2899.4,2.57408989]
[1766709851926,0.001,2899.8,2899.4,2.5396]
[1766709852427,0.03450536,2900.2,2899.4,2.5396]
[1766709852607,0.03450536,2900.5,2899.6,2.5396]
[1766709852800,0.03450536,2900.5,2899.7,2.5396]
[1766709853000,0.27701054,2900.4,2899.7,2.5396]
[1766709853198,0.03450536,2900.3,2899.7,2.5396]
[1766709853628,2.77010536,2900.3,2899.5,3.44877762]
[1766709853821,0.001,2899.8,2899.5,7.30157762]
[1766709854122,2.77010536,2900.3,2899.5,7.30157762]
[1766709854123,2.77010536,2900.3,2899.5,6.39757762]
[1766709854306,3.07481695,2900.3,2899.5,3.44877762]
[1766709854495,3.07481695,2900.3,2899.6,2.9488]
[1766709855325,2.9473,2900.2,2898.7,2.9488]
[1766709855517,2.9473,2900.0,2899.1,3.44928206]
[1766709855723,2.9473,2900.0,2899.0,2.9488]
[1766709855724,0.3326859,2899.9,2899.4,3.44897493]
[1766709856023,0.3326859,2899.9,2899.5,0.0344887]
[1766709856525,0.29818054,2899.9,2899.5,0.0344887]
[1766709856730,0.3326859,2899.9,2899.3,6.39784711]
[1766709857238,0.3326859,2899.9,2899.4,0.03448989]
[1766709857931,0.3326859,2899.9,2899.3,6.39784711]
[1766709858729,3.27529859,2899.8,2899.1,0.904]
[1766709858922,3.27529859,2899.8,2899.1,4.35334339]
[1766709858923,0.03450536,2899.7,2899.1,4.35334339]
[1766709859420,3.27529859,2899.8,2899.2,2.98329227]
[1766709859635,0.32799859,2899.8,2899.2,2.98329227]
[1766709859835,2.98180536,2900.1,2899.2,2.98329227]
[1766709860016,2.98180536,2900.1,2899.2,2.9488]
[1766709860532,0.001,2899.9,2899.1,3.8528]
[1766709860715,2.9473,2899.8,2899.1,7.3021458]
[1766709860915,0.03450536,2899.7,2899.1,3.8528]
[1766709861315,2.9473,2899.7,2899.1,3.8528]
[1766709861838,0.03450536,2899.6,2898.9,0.002]
[1766709862023,2.98180536,2899.6,2898.9,4.3555798]
[1766709863338,2.98180536,2899.6,2898.9,3.4515798]
[1766709863523,3.3094689,2899.6,2899.0,0.03449465]
[1766709863722,0.03450536,2899.5,2899.0,2.98329465]
[1766709863933,0.03450536,2899.5,2899.0,2.9488]
[1766709864124,2.9483,2899.9,2899.0,2.9488]
[1766709864125,2.98180536,2899.8,2899.0,2.9488]
[1766709866046,2.98180536,2899.8,2899.0,6.39819961]
[1766709866338,2.98180536,2899.8,2898.9,3.45153024]
[1766709866643,3.24558054,2899.7,2898.9,3.45153024]
[1766709866845,0.03450536,2899.6,2898.9,6.40033024]
[1766709867340,0.03450536,2899.6,2899.1,2.9488]
[1766709867541,0.03550536,2899.9,2899.2,2.98329227]
[1766709867842,2.98280536,2899.9,2899.2,2.98329227]
[1766709868041,0.38868054,2899.8,2899.2,2.98329227]
[1766709868239,0.03450536,2899.7,2899.2,2.98329227]
[1766709870947,0.03450536,2899.7,2899.2,2.9488]
[1766709872152,2.98180536,2899.7,2898.9,2.9508]
[1766709872452,3.31905395,2899.7,2898.9,6.40028666]
[1766709872626,3.31905395,2899.7,2899.0,2.9488]
[1766709875041,3.31905395,2899.7,2898.9,3.45148666]
[1766709875241,3.31905395,2899.7,2898.9,6.40028666]
[1766709875565,0.37175395,2899.7,2899.0,2.9488]
[1766709875852,0.03450536,2899.7,2899.0,2.9488]
[1766709876026,2.98180536,2899.7,2899.0,2.9488]
[1766709877558,2.98180536,2899.7,2898.9,0.002]
[1766709877855,2.98180536,2899.7,2898.9,3.45155396]
[1766709880254,2.98180536,2899.7,2898.9,6.40035396]
[1766709880459,2.9473,2899.7,2899.0,2.98329465]
[1766709881860,2.9473,2899.7,2899.0,6.43269243]
[1766709882262,2.9473,2899.7,2899.0,3.48389243]
[1766709882467,2.9473,2899.7,2899.1,3.4156]
[1766709882656,2.9473,2899.7,2899.2,0.03449227]
[1766709882858,0.001,2899.8,2899.2,3.45009227]
[1766709883261,0.34723054,2899.8,2899.2,3.45009227]
[1766709883669,3.3856,2899.6,2899.2,0.03449227]
[1766709883867,3.3856,2899.6,2899.0,3.4381]
[1766709884064,3.42010536,2899.5,2899.0,3.4381]
[1766709884846,3.3856,2899.5,2899.0,3.4381]
[1766709885469,3.3856,2899.5,2899.1,0.03449346]
[1766709885770,3.42110536,2899.8,2899.1,3.47259346]
[1766709885968,3.7633159,2899.8,2899.1,3.47259346]
[1766709888559,3.7633159,2899.8,2899.1,0.03449346]
[1766709888761,3.7633159,2899.8,2899.0,0.002]
[1766709888762,3.3856,2899.7,2899.0,0.002]
[1766709888966,3.3856,2899.5,2899.0,0.002]
[1766709889146,3.42010536,2899.4,2899.0,0.002]
[1766709890666,3.42010536,2899.4,2897.7,0.002]
[1766709890667,4.15788757,2898.8,2897.7,0.002]
[1766709890882,4.15788757,2899.0,2897.5,0.904]
[1766709890883,4.15788757,2898.4,2897.5,0.904]
[1766709891103,4.15788757,2899.0,2897.2,3.45154044]
[1766709891104,4.15788757,2898.1,2897.2,3.45154044]
[1766709891303,0.01036233,2898.9,2896.9,3.4381]
[1766709891304,0.03450536,2898.0,2896.9,3.4381]
[1766709891460,4.19239293,2898.1,2897.1,6.88971624]
[1766709891654,4.19239293,2898.1,2897.1,3.4381]
[1766709891862,0.50963929,2898.0,2897.1,6.88974046]
[1766709892092,0.03450536,2897.9,2897.2,3.45156809]
[1766709892273,0.03450536,2897.9,2897.3,3.4381]
[1766709892477,0.03450536,2898.1,2897.3,3.4381]
[1766709893284,0.03450536,2898.2,2897.4,3.4726137]
[1766709893458,0.03450536,2898.2,2897.5,3.4381]
[1766709893652,0.904,2898.5,2897.3,6.90296645]
[1766709893653,0.03450536,2898.4,2897.7,3.4381]
[1766709893889,0.03450536,2898.4,2897.9,3.4381]
[1766709894087,0.03450536,2898.5,2897.9,3.4381]
[1766709894303,0.03450536,2898.5,2897.3,6.90296645]
[1766709894304,3.3856,2898.4,2897.3,6.90296645]
[1766709894612,3.3856,2898.2,2897.4,3.4381]
[1766709896287,3.3856,2898.2,2897.5,6.88935107]
[1766709897307,3.3856,2898.2,2897.5,3.45125107]
[1766709897512,3.42010536,2898.7,2897.6,3.78342511]
[1766709897663,3.42010536,2898.7,2897.7,0.03451012]
[1766709897864,3.42010536,2898.7,2897.8,3.4381]
[1766709898059,3.42010536,2898.7,2897.9,0.03450774]
[1766709898264,3.42010536,2898.7,2897.8,3.4381]
[1766709898504,3.3856,2898.5,2897.8,3.4381]
[1766709898720,0.03450536,2898.4,2897.8,3.4381]
[1766709898866,3.42010536,2898.4,2897.8,3.4381]
[1766709899608,3.42010536,2898.4,2897.9,0.03450774]
[1766709899900,0.4669159,2898.6,2897.9,3.47260774]
[1766709900197,0.03450536,2898.6,2897.9,4.02942221]
[1766709900376,0.03450536,2898.6,2897.9,7.48010916]
[1766709900573,0.03450536,2898.6,2898.0,3.4381]
[1766709900778,0.03450536,2898.9,2898.0,3.4381]
[1766709900986,0.72145686,2898.9,2898.0,3.4381]
[1766709901165,4.10705686,2898.9,2898.0,3.4381]
[1766709901366,3.42010536,2898.9,2898.2,3.4381]
[1766709901571,3.3856,2899.2,2898.3,3.4381]
[1766709901776,3.42010536,2899.1,2898.3,3.4381]
[1766709902298,3.42010536,2899.1,2897.9,7.49278385]
[1766709902504,3.42010536,2899.1,2898.0,0.03450655]
[1766709902800,3.42010536,2899.1,2898.1,3.4381]
[1766709903174,0.03450536,2899.1,2898.3,3.4381]
[1766709903375,0.03450536,2899.3,2898.5,3.4381]
[1766709903575,0.03450536,2899.3,2898.4,1.2848269]
[1766709903576,0.001,2899.8,2898.7,3.4381]
[1766709903781,0.03550536,2899.8,2898.9,3.4381]
[1766709903994,0.03550536,2899.8,2899.0,3.4381]
[1766709904298,0.001,2899.6,2899.1,3.47259346]
[1766709904496,0.001,2899.8,2899.3,3.4381]
[1766709904996,0.001,2899.8,2899.2,3.44922737]
[1766709906104,0.001,2899.8,2899.2,6.88732737]
[1766709906994,0.001,2899.8,2899.2,3.4381]
[1766709907224,3.3856,2899.7,2899.0,0.904]
[1766709907372,3.42010536,2899.6,2899.0,0.904]
[1766709907887,3.42010536,2899.6,2899.1,3.4493457]
[1766709908090,0.001,2899.8,2899.2,6.8873183]
[1766709908312,0.03550536,2899.8,2899.2,6.8873183]
[1766709908818,3.42110536,2899.8,2899.0,3.44939901]
[1766709908984,3.3856,2899.6,2899.0,0.904]
[1766709909319,3.42010536,2899.5,2899.0,0.904]
[1766709909479,3.3856,2899.5,2899.0,4.35344231]
[1766709909685,3.3856,2899.5,2899.0,3.44944231]
[1766709909927,3.3856,2899.5,2898.6,3.4381]
[1766709910194,0.03450536,2899.4,2898.8,3.44967731]
[1766709910374,0.03450536,2899.4,2898.3,3.4381]
[1766709910375,3.42010536,2899.4,2898.3,3.4381]
[1766709910579,3.42010536,2899.4,2898.6,3.44990853]
[1766709910770,3.42010536,2899.4,2898.6,3.44994078]
[1766709910970,3.3856,2899.2,2898.6,3.44994078]
[1766709911194,3.42010536,2899.1,2898.5,3.45006037]
[1766709911604,3.42010536,2899.1,2898.5,6.90012074]
[1766709911779,0.37928864,2899.3,2898.5,10.33822074]
[1766709911983,0.03450536,2899.2,2898.5,10.33822074]
[1766709912300,3.42010536,2899.3,2898.5,10.33822074]
[1766709912469,0.03450536,2899.2,2898.8,0.002]
[1766709912873,3.42010536,2899.7,2898.9,3.4381]
[1766709913200,0.34211054,2899.6,2899.0,0.03449465]
[1766709913390,0.34211054,2899.6,2899.1,0.03449346]
[1766709913594,3.7622159,2899.6,2898.8,0.002]
[1766709913798,3.42010536,2899.6,2898.8,3.45169542]
[1766709914373,3.42010536,2899.6,2898.8,0.002]
[1766709914898,3.42010536,2899.6,2898.9,3.44950255]
[1766709915098,3.78181054,2899.5,2899.0,0.03449465]
[1766709916006,3.47430536,2899.4,2898.9,3.4840629]
[1766709916213,3.47430536,2899.4,2899.0,0.03449465]
[1766709916714,3.47430536,2899.4,2898.9,0.03449584]
[1766709917007,3.85593695,2899.4,2898.8,3.45164663]
[1766709917613,3.85593695,2899.4,2898.8,0.002]
[1766709919609,3.85593695,2899.4,2898.8,0.03649703]
[1766709919812,0.001,2899.8,2898.9,3.4245]
[1766709919813,3.4398,2899.7,2898.9,3.4245]
[1766709920198,3.4398,2899.7,2899.0,0.03449465]
[1766709920400,3.4398,2899.7,2898.9,3.4245]
[1766709920585,3.78398,2899.7,2898.9,3.4245]
[1766709922297,3.78398,2899.7,2898.9,6.8740126]
[1766709922733,3.78398,2899.7,2898.9,10.32359692]
[1766709923496,3.78398,2899.7,2898.9,6.8740126]
[1766709924310,3.78398,2899.7,2898.9,3.4495126]
[1766709924510,3.818298,2899.6,2898.9,6.8740126]
[1766709925196,3.818298,2899.6,2898.8,3.45164588]
[1766709925501,3.818298,2899.6,2898.8,10.3258492]
[1766709925701,3.818298,2899.6,2898.9,0.03449584]
[1766709926933,3.818298,2899.6,2898.9,3.44954702]
[1766709927437,3.818298,2899.6,2898.9,3.45154702]
[1766709927634,3.818298,2899.6,2898.9,3.48604286]
[1766709927833,3.818298,2899.6,2898.9,0.03649584]
[1766709928001,3.818298,2899.6,2898.9,3.48607636]
[1766709928331,3.818298,2899.6,2898.9,6.93566068]
[1766709928531,3.818298,2899.6,2898.9,6.90116484]
[1766709928734,3.818298,2899.6,2899.0,0.03449465]
[1766709929137,3.818298,2899.6,2899.0,3.4839426]
[1766709929515,3.818298,2899.6,2899.0,10.35790793]
[1766709929710,3.4398,2899.6,2899.0,6.87394795]
[1766709930818,3.4398,2899.6,2899.1,0.03449346]
[1766709931866,3.4398,2899.6,2899.1,3.44931539]
[1766709932912,3.4398,2899.6,2899.0,6.87391478]
[1766709934618,0.001,2899.7,2899.1,7.61619517]
[1766709934846,0.001,2899.7,2899.1,7.58170171]
[1766709935345,0.001,2899.7,2899.1,11.03102825]
[1766709935551,3.4408,2899.7,2899.1,11.03102825]
[1766709936047,3.4408,2899.7,2899.2,0.03449227]
[1766709936354,3.4408,2899.7,2899.1,3.4245]
[1766709936536,3.78508,2899.7,2898.9,3.45155038]
[1766709936717,3.78508,2899.7,2899.0,3.44944694]
[1766709936718,3.4408,2899.7,2899.0,3.44944694]
[1766709937553,3.4408,2899.7,2898.9,0.002]
[1766709944550,3.7114,2899.6,2898.9,0.002]
[1766709947331,3.7114,2899.6,2898.8,0.002]
[1766709947531,3.7114,2899.4,2898.8,0.002]
[1766709948654,3.7114,2899.4,2898.9,0.002]
[1766709949560,3.7114,2899.3,2898.5,3.5675]
[1766709949765,3.7114,2899.1,2898.3,4.35424249]
[1766709950081,3.7114,2899.1,2898.2,3.5675]
[1766709950250,3.7114,2899.1,2898.0,4.4715]
[1766709950568,3.7114,2899.1,2898.4,7.60726329]
[1766709951083,3.7114,2899.4,2898.7,3.5675]
[1766709951242,4.09341808,2899.4,2898.7,3.60199822]
[1766709952365,4.09341808,2899.4,2898.7,3.5675]
[1766709952773,4.09341808,2899.4,2898.8,0.03449703]
[1766709952957,4.09341808,2899.4,2898.7,7.01725206]
[1766709953166,4.09341808,2899.4,2898.7,3.5675]
[1766709953767,3.7114,2899.4,2898.7,11.17450216]
[1766709954272,0.904,2899.5,2898.8,3.5675]
[1766709954779,4.6154,2899.5,2898.8,7.01718907]
[1766709954939,4.6154,2899.5,2898.9,3.5675]
[1766709955469,3.7124,2899.4,2898.9,3.5675]
[1766709956786,3.7124,2899.7,2899.1,11.17395135]
[1766709956980,3.7124,2899.7,2899.1,7.60645135]
[1766709957287,3.7124,2899.7,2899.2,3.60199227]
[1766709957580,3.7124,2899.7,2899.2,3.5675]
[1766709957739,3.7124,2899.7,2899.1,4.15720171]
[1766709957740,3.7124,2899.7,2899.0,3.44940751]
[1766709957943,0.001,2900.8,2899.3,3.44905019]
[1766709958169,8.01132823,2901.6,2899.3,3.44905019]
[1766709958170,9.81314734,2902.2,2900.9,0.17987238]
[1766709958369,0.001,2902.4,2902.0,4.15720171]
[1766709958568,3.7124,2902.4,2901.4,3.5675]
[1766709958741,3.7124,2902.4,2902.0,7.60309384]
[1766709958944,3.7114,2902.7,2902.2,4.15720171]
[1766709959260,0.38150233,2902.6,2902.2,4.15720171]
[1766709959477,0.38150233,2902.6,2902.0,4.15720171]
[1766709959944,4.09290233,2902.6,2901.8,3.5675]
[1766709960142,3.7114,2901.9,2901.1,0.904]
[1766709960449,3.7114,2901.9,2900.9,3.62699459]
[1766709960450,0.01036233,2901.2,2900.9,0.17987238]
[1766709960651,0.37217623,2901.1,2900.9,0.17987238]
[1766709960856,0.37217623,2901.1,2900.4,3.4477898]
[1766709961061,0.01036233,2901.2,2900.4,7.0152898]
[1766709962254,0.01036233,2901.2,2900.4,7.01529645]
[1766709963153,0.01036233,2901.2,2899.8,5.17739797]
[1766709963154,3.45722286,2901.2,2899.8,5.17739797]
[1766709963341,3.7114,2900.9,2899.9,4.4715]
[1766709963543,3.7114,2900.9,2900.0,4.01465]
[1766709963773,0.01036233,2900.8,2900.0,4.01465]
[1766709963960,0.01036233,2900.8,2900.0,7.46292521]
[1766709964562,0.01036233,2900.8,2900.1,3.448133]
[1766709965074,4.0949748,2900.8,2900.1,3.448133]
[1766709965874,4.0949748,2900.8,2900.2,0.03448038]
[1766709966189,3.7114,2900.7,2899.6,7.92014616]
[1766709966386,3.72176233,2900.6,2899.7,3.44863011]
[1766709966551,3.72176233,2900.6,2899.8,0.79201301]
[1766709967449,3.72176233,2900.6,2899.9,3.44838873]
[1766709967802,3.72176233,2900.6,2899.8,4.35951301]
[1766709967948,3.72176233,2900.6,2899.5,3.5675]
[1766709967949,0.01036233,2900.4,2899.5,3.5675]
[1766709968153,3.7114,2900.1,2899.3,3.44907118]
[1766709969370,3.7114,2900.1,2899.1,4.4715]
[1766709969572,3.7114,2900.0,2899.2,0.44715]
[1766709969773,3.7114,2900.0,2898.9,3.44957484]
[1766709970010,3.7114,2899.8,2898.9,7.01707484]
[1766709970189,3.72176233,2899.7,2898.9,3.5675]
[1766709970554,3.72176233,2899.7,2899.5,0.002]
[1766709972401,3.7114,2900.1,2899.5,0.002]
[1766709972604,4.6154,2900.1,2899.5,0.0364887]
[1766709972966,4.6154,2900.1,2899.5,0.002]
[1766709973403,4.6154,2900.1,2899.5,0.0364887]
[1766709973864,3.76876233,2900.5,2899.5,3.7659887]
[1766709974196,3.76876233,2900.3,2899.5,3.7315]
[1766709974770,3.7584,2900.2,2899.5,3.7315]
[1766709975069,3.7584,2900.2,2899.5,0.002]
[1766709977205,0.01036233,2900.3,2899.6,3.7295]
[1766709977402,0.01036233,2900.3,2899.7,0.03448632]
[1766709977703,4.67276233,2900.5,2899.7,3.7295]
[1766709977870,4.67276233,2900.5,2899.8,3.76398513]
[1766709978066,4.67276233,2900.5,2899.6,0.37315]
[1766709978276,4.67276233,2900.5,2899.5,3.7315]
[1766709978277,4.67276233,2900.5,2899.7,0.410465]
[1766709978566,4.67276233,2900.5,2899.5,0.002]
[1766709978567,3.7584,2900.2,2899.5,0.002]
[1766709983384,3.7584,2900.2,2899.5,0.0364887]
[1766709983904,3.7584,2900.2,2899.5,3.7659887]
[1766709984710,0.01036233,2900.5,2899.6,3.44875155]
[1766709984889,4.6624,2900.8,2899.7,3.76398632]
[1766709985092,4.6624,2900.8,2899.8,3.7295]
[1766709985316,4.6624,2900.8,2900.0,3.7295]
[1766709985487,0.01036233,2900.7,2900.0,3.7295]
[1766709985811,3.7584,2900.7,2899.7,3.7295]
[1766709986501,3.7584,2900.7,2899.9,3.7295]
[1766709986901,3.7584,2900.7,2900.0,0.03448275]
[1766709987101,3.7584,2900.7,2900.0,7.21224231]
[1766709987319,0.001,2900.9,2900.1,3.7295]
[1766709987616,0.001,2900.9,2900.3,3.7295]
[1766709987912,0.001,2900.9,2900.4,4.14037604]
[1766709988513,0.001,2900.9,2900.5,0.03447681]
[1766709988813,0.001,2901.2,2900.5,3.76397681]
[1766709989019,0.001,2901.2,2900.7,3.7295]
[1766709989310,0.904,2901.6,2900.9,3.7295]
[1766709989482,0.904,2901.6,2901.0,3.76397087]
[1766709990122,4.6624,2901.6,2901.0,0.03447087]
[1766709990287,4.6624,2901.6,2900.8,0.94188087]
[1766709990484,4.6624,2901.6,2900.9,0.37639804]
[1766709990688,0.904,2901.6,2901.0,3.76397087]
[1766709991710,0.904,2901.6,2901.0,3.7295]
[1766709991918,3.7584,2901.5,2900.5,7.1771486]
[1766709992118,0.001,2901.2,2900.6,0.34476515]
[1766709992993,3.7594,2901.2,2900.6,0.34476515]
[1766709993308,3.7594,2901.2,2900.7,0.03447443]
[1766709994997,3.7594,2901.2,2900.7,0.79011536]
[1766709995192,0.001,2901.2,2900.7,4.23753106]
[1766709995415,3.7584,2901.6,2900.8,3.7295]
[1766709996423,3.7584,2901.6,2900.8,7.17681522]
[1766709996624,3.7584,2901.6,2900.8,3.44731522]
[1766709996794,3.7584,2901.6,2900.8,7.17681522]
[1766709997117,3.7584,2901.6,2900.9,0.71768152]
[1766709999122,3.7594,2901.6,2900.9,0.71768152]
[1766709999708,3.7594,2901.6,2901.0,0.03447087]
[1766710000408,0.001,2901.6,2901.1,3.7295]
[1766710000614,0.001,2901.6,2901.2,0.60059739]
[1766710001118,3.7594,2901.6,2900.8,7.17679408]
[1766710001308,3.7594,2901.6,2900.9,3.76397206]
[1766710005324,3.7594,2901.6,2900.9,3.7295]
[1766710006596,3.7594,2901.6,2901.0,0.03447087]
[1766710009003,3.7594,2901.6,2900.9,3.7295]
[1766710009526,3.7337,2901.4,2900.6,3.841]
[1766710009730,3.7337,2901.4,2900.7,4.2251]
[1766710010515,3.7337,2901.4,2900.8,3.841]
[1766710011227,3.7347,2901.6,2900.9,3.87547206]
[1766710011430,0.001,2901.6,2900.9,3.87547206]
[1766710011612,0.001,2901.6,2901.1,3.841]
[1766710015936,3.7347,2901.6,2900.9,3.841]
[1766710016333,3.7347,2901.6,2900.9,7.28811916]
[1766710016536,3.7347,2901.6,2901.0,3.841]
[1766710017235,0.001,2901.6,2901.1,3.841]
[1766710017427,0.001,2901.6,2901.2,0.72880746]
[1766710017628,0.001,2901.6,2901.2,4.60427595]
[1766710019623,0.001,2902.1,2901.3,3.841]
[1766710019828,0.001,2902.1,2901.5,3.841]
[1766710020009,0.001,2902.1,2901.6,3.87546374]
[1766710020209,0.001,2902.1,2901.6,4.26301011]
[1766710020933,3.7347,2902.1,2901.6,4.26301011]
[1766710021131,3.7347,2902.1,2901.6,0.38754637]
[1766710021337,3.74406233,2902.0,2900.9,3.841]
[1766710021642,3.7337,2901.8,2900.9,3.841]
[1766710021939,4.54310805,2901.8,2900.9,3.841]
[1766710022144,4.55347038,2901.8,2900.9,3.841]
[1766710023256,3.7337,2901.5,2900.8,0.002]
[1766710023425,3.7337,2901.3,2900.8,0.002]
[1766710023741,3.7337,2901.1,2900.8,0.002]
[1766710026071,3.7337,2901.1,2899.8,3.841]
[1766710026359,3.7337,2901.1,2900.0,3.841]
[1766710028435,3.7337,2901.1,2900.1,7.28915696]
[1766710030962,3.7337,2901.0,2900.1,3.841]
[1766710032262,3.7337,2900.8,2900.1,3.841]
[1766710032670,3.7337,2900.8,2900.2,0.03448038]
[1766710033236,3.7337,2900.8,2900.2,3.87548038]
[1766710039377,3.7337,2900.8,2900.2,3.841]
[1766710042457,3.7337,2900.8,2900.1,0.002]
[1766710042871,3.44734853,2900.8,2900.1,0.002]
[1766710043061,3.8078,2900.7,2900.1,0.002]
[1766710043592,0.01036233,2900.3,2899.6,0.002]
[1766710043760,0.01036233,2900.1,2899.1,3.8986]
[1766710043949,3.8078,2900.0,2899.3,3.8986]
[1766710044147,3.8078,2900.0,2899.4,3.93308989]
[1766710044574,3.8078,2900.0,2899.4,7.38206976]
[1766710044774,3.8078,2900.0,2899.5,3.9350887]
[1766710044974,3.8078,2900.8,2899.8,3.8986]
[1766710045475,0.01036233,2900.7,2899.5,3.9006]
[1766710045649,3.8078,2900.4,2899.5,3.9006]
[1766710045855,4.7118,2900.4,2899.5,0.002]
[1766710046054,3.8078,2900.2,2899.5,0.002]
[1766710046907,3.44815696,2900.1,2899.5,0.002]
[1766710047052,3.8078,2900.0,2899.5,0.002]
[1766710048027,3.8078,2900.0,2899.0,3.8986]
[1766710048873,3.8078,2900.0,2898.9,3.4495397]
[1766710049064,3.8078,2899.8,2899.0,3.93309465]
[1766710049664,3.8078,2899.8,2899.0,3.8986]
[1766710050064,3.8078,2899.8,2899.2,4.15651349]
[1766710051965,3.8078,2899.8,2899.0,8.05511349]
[1766710052165,3.8078,2899.8,2899.1,3.8986]
[1766710052471,4.35164396,2899.8,2899.1,3.8986]
[1766710053078,4.35164396,2899.8,2899.0,4.15651349]
[1766710053278,4.35164396,2899.8,2899.0,8.05511349]
[1766710053878,3.8078,2899.7,2899.0,8.05511349]
[1766710056671,3.8078,2899.7,2899.0,3.8986]
[1766710056985,3.8078,2899.5,2898.9,0.002]
[1766710057388,3.8078,2899.5,2898.9,3.9006]
[1766710057966,3.8078,2899.5,2899.0,0.002]
[1766710061471,3.8078,2899.5,2899.0,0.03649465]
[1766710063198,3.8078,2899.5,2899.0,3.71099465]
[1766710069507,4.43144396,2899.8,2899.0,3.71099465]
[1766710069708,4.43144396,2899.8,2899.2,3.7427]
[1766710074708,4.43244396,2899.8,2899.0,3.77919465]
[1766710075007,3.8876,2899.7,2899.0,3.7447]
[1766710076409,3.8876,2899.7,2899.0,7.19412487]
[1766710076591,3.8876,2899.7,2899.1,3.77719346]
[1766710077411,0.001,2899.8,2899.2,3.7427]
[1766710077584,3.8886,2899.8,2899.3,0.03449108]
[1766710079315,3.8886,2899.8,2899.2,3.7427]
[1766710081816,0.001,2899.8,2899.3,3.77719108]
[1766710082020,10.3576,2900.4,2899.7,3.7427]
[1766710082218,10.3576,2900.4,2899.4,7.89921349]
[1766710082219,3.8876,2900.4,2899.4,7.89921349]
[1766710082410,3.8876,2900.4,2899.7,3.7427]
[1766710082607,3.8876,2900.4,2899.8,3.77718513]
[1766710084511,3.8876,2900.7,2899.8,3.7427]
[1766710085009,3.8876,2900.7,2899.9,3.7427]
[1766710085207,3.8886,2900.9,2900.3,3.7427]
[1766710085817,3.8886,2900.9,2900.4,3.777178]
[1766710086018,0.001,2900.9,2900.5,3.7427]
[1766710086224,3.8876,2900.8,2899.0,0.002]
[1766710086391,3.8876,2900.8,2899.3,8.0957878]
[1766710086392,3.8876,2900.3,2899.3,8.0957878]
[1766710086593,3.8876,2900.1,2899.4,3.77718989]
[1766710087206,3.8876,2900.1,2899.6,3.7427]
[1766710087412,3.92207562,2900.0,2899.3,3.7427]
[1766710087723,3.92207562,2900.0,2899.3,0.904]
[1766710089707,3.8876,2899.9,2899.3,0.904]
[1766710089908,3.8876,2899.7,2899.3,0.904]
[1766710090933,3.8876,2899.7,2899.3,0.906]
[1766710091535,3.92207562,2899.6,2899.3,0.906]
[1766710092126,0.03447562,2899.6,2899.3,0.906]
[1766710092332,3.92207562,2899.8,2899.3,0.906]
[1766710099239,0.03447562,2899.8,2899.4,7.99851349]
[1766710099535,3.6551,2900.2,2899.5,3.842]
[1766710099536,0.03447562,2900.1,2899.5,3.842]
[1766710099738,0.74823462,2900.1,2899.5,3.842]
[1766710099929,4.40333462,2900.1,2899.5,3.842]
[1766710102125,4.40333462,2900.1,2899.6,0.03448751]
[1766710102310,3.68957562,2900.1,2899.6,0.03448751]
[1766710103342,3.68957562,2900.1,2899.5,0.0344887]
[1766710103523,3.68957562,2900.1,2899.4,0.03448989]
[1766710104042,3.68957562,2900.1,2899.4,3.87648989]
[1766710106180,0.001,2900.5,2899.5,6.89774098]
[1766710106450,0.001,2900.5,2900.1,3.842]
[1766710106651,0.001,2900.5,2900.2,0.904]
[1766710107024,3.6561,2900.5,2900.2,0.904]
[1766710108944,3.6561,2900.5,2900.3,0.03447919]
[1766710108945,0.001,2900.5,2900.3,0.03447919]
[1766710110467,0.001,2900.5,2900.2,0.904]
[1766710110968,0.001,2900.5,2900.2,0.93848038]
[1766710113178,3.6551,2899.9,2899.7,0.904]
[1766710113375,0.03448038,2899.8,2899.4,0.904]
[1766710113743,3.6551,2899.9,2899.5,0.0344887]
[1766710114368,0.90399999,2900.0,2899.5,3.8764887]
[1766710114779,3.69058038,2900.5,2899.6,3.842]
[1766710114972,3.69058038,2900.5,2899.8,3.842]
[1766710115647,3.69058038,2900.5,2899.9,4.78048394]
[1766710116172,3.69058038,2900.5,2899.9,4.746]
[1766710116944,3.69058038,2900.5,2899.9,0.904]
[1766710117156,4.02415804,2900.4,2899.9,0.904]
[1766710117366,3.68958038,2900.3,2899.9,0.904]
[1766710119372,0.03448038,2900.3,2899.9,0.904]
[1766710119575,0.03448038,2900.3,2899.9,4.746]
[1766710119776,0.03448038,2900.4,2899.9,4.746]
[1766710119977,3.6551,2900.8,2900.2,3.842]
[1766710121092,0.001,2901.0,2900.4,3.842]
[1766710121377,0.001,2901.0,2900.5,0.93847681]
[1766710123882,0.001,2901.0,2900.5,4.67247681]
[1766710124779,0.001,2900.8,2900.5,4.67247681]
[1766710124948,0.001,2900.8,2900.5,5.12865572]
[1766710125154,0.001,2900.8,2899.6,3.44869217]
[1766710125155,3.75766233,2900.7,2899.7,3.44854926]
[1766710125370,3.75766233,2900.7,2899.8,8.29870885]
[1766710125648,3.75766233,2900.5,2899.8,8.29870885]
[1766710126179,3.75766233,2900.5,2899.8,4.8502]
[1766710126345,3.75766233,2900.5,2899.8,8.29870034]
[1766710126549,3.75766233,2900.5,2899.9,0.904]
[1766710127481,3.7473,2900.5,2899.9,0.904]
[1766710127879,3.7473,2900.5,2899.7,7.39481914]
[1766710128084,3.7473,2900.5,2900.0,0.904]
[1766710128273,4.12306623,2900.5,2900.0,0.904]
[1766710130056,3.7483,2900.8,2900.1,3.9462]
[1766710130256,3.7483,2900.8,2900.2,0.03448038]
[1766710130457,3.7483,2900.8,2900.2,3.98068038]
[1766710132398,3.7473,2900.7,2899.8,3.9462]
[1766710132689,4.47732774,2900.7,2899.9,0.904]
[1766710133062,4.47732774,2900.7,2899.9,0.906]
[1766710134497,3.7473,2900.6,2899.9,0.906]
[1766710136372,0.71966541,2900.7,2900.0,3.98068275]
[1766710136709,3.7483,2900.8,2900.0,3.98068275]